Cogmind - Beta 15 @@@ ROGUE MODE // 2025.05.18 @ 16:55:26 Player: Nalesnig Result: Destroyed by ZX-SKI(R) with Subdweller Machine Gun Performance ------------- Evolutions (0) 0 Regions Visited (3) 600 Robots Destroyed (18) 90 Value Destroyed (448) 448 Prototype IDs (0) 0 Alien Tech Used (0) 0 Bonus (30) 30 TOTAL SCORE: 1168 Bonus ------- Follower Combat Kills 30 Cogmind --------- Core Integrity 0/250 Matter 277/300 Energy 114/125 System Corruption 8% Temperature Cool (0) Movement Treading (160) Location -10/Subcaves Parts ------- > --- POWER (1) -------- Light Ion Engine > --- PROPULSION (2) --- Light Treads (fused) Light Treads > --- UTILITY (2) ------ Large Storage Unit Makeshift Light Armor Plating > --- WEAPON (2) ------- Assault Rifle Flamer > --- INVENTORY (15) --- Light Treads Light Treads Heat Sink Large Storage Unit High-capacity Storage Unit Structural Scanner Seismic Detector Peak State ------------ > --- POWER ------------ Light Ion Engine > --- PROPULSION ------- Light Treads Light Treads > --- UTILITY ---------- Large Storage Unit Makeshift Light Armor Plating > --- WEAPON ----------- Assault Rifle Flamer > --- INVENTORY -------- Light Treads Light Treads Heat Sink Large Storage Unit High-capacity Storage Unit Structural Scanner [Rating: 11] Favorites ----------- Power Ion Engine Engine Ion Engine Propulsion Light Treads Treads Light Treads Leg Aluminum Leg Utility Seismic Detector Device Seismic Detector Storage Large Storage Unit Protection Makeshift Light Armor Plating Weapon Small Laser Energy Gun Small Laser Ballistic Gun Assault Rifle Special Weapon Flamer Build | -11 -10 -10 -10 ------- Run | Yrd Mat Min Sub Slots Evolved . | . . . . Power . | . . . . Propulsion . | . . . . Utility . | . . . . Weapon . | . . . . Parts Attached 21 | 9 2 8 2 Power 3 | 1 . 2 . Engine 3 | 1 . 2 . Core . | . . . . Reactor . | . . . . Propulsion 6 | 4 . 2 . Treads 4 | 2 . 2 . Leg 2 | 2 . . . Wheel . | . . . . Hover . | . . . . Flight . | . . . . Utility 5 | 2 1 1 1 Device 2 | 1 . 1 . Storage 2 | 1 1 . . Processor . | . . . . Hackware . | . . . . Protection 1 | . . . 1 Artifact . | . . . . Weapon 7 | 2 1 3 1 Energy Gun 5 | 2 1 2 . Energy Cannon . | . . . . Ballistic Gun 1 | . . 1 . Ballistic Cannon . | . . . . Launcher . | . . . . Special Weapon 1 | . . . 1 Impact Weapon . | . . . . Slashing Weapon . | . . . . Piercing Weapon . | . . . . Special Melee Weapon . | . . . . Unidentified Prototypes . | . . . . Parts Lost 10 | . 1 8 1 Power 2 | . . 2 . Propulsion 2 | . . 2 . Utility 1 | . . 1 . Weapon 5 | . 1 3 1 Highest Loss Streak 6 | . 1 6 1 To Critical Strikes . | . . . . Average Backups 6 | 1 6 8 6 Power . | . 1 . . Propulsion 1 | . 1 2 2 Utility 3 | . 2 4 4 Weapon 1 | . 1 1 . Tool/Special . | . . . . Unused Backups 5 | . . . 5 Power . | . . . . Propulsion 1 | . . . 1 Utility 4 | . . . 4 Weapon . | . . . . Tool/Special . | . . . . Average Slot Usage (%) 95 | . 100 92 90 Engine 13 | . 14 12 14 Treads 27 | . 28 27 28 Device 12 | . 14 9 13 Storage 14 | . 14 14 14 Energy Gun 19 | . 28 19 4 Ballistic Gun 5 | . . 7 14 Peak Build Rating 11 | 7 8 9 11 Average Rating 6 | 5 7 6 6 On Entrance 5 | . 7 8 7 Naked Turns . | . . . . Heaviest Build 31 | 14 29 28 31 Greatest Support 40 | 40 40 40 40 Greatest Overweight (x) 1 | . . 1 . Average Overweight (x) . | . . . . Largest Inventory Capacity 15 | 8 15 15 15 Average Capacity 13 | 7 12 15 15 Most Carried 11 | 2 11 11 7 Average Carried 6 | 1 6 8 6 Final Capacity 15 | 8 15 15 15 Final Carried 11 | 2 11 6 7 Class Distribution -------------------- 100% | Mutant Dominant Class ---------------- Mutant | -10/Materials Mutant | -10/Mines Mutant | -10/Subcaves Resources | -11 -10 -10 -10 ----------- Run | Yrd Mat Min Sub Matter Collected 494 | 227 83 139 45 Remotely . | . . . . Salvage Created 681 | 49 393 239 . Parts 34 | 7 20 7 . Haulers Intercepted 1 | . 1 . . Recyclers Shooed . | . . . . Parts Field Recycled . | . . . . Retrieved Matter . | . . . . Parts Self-Destructed 5 | . . . 5 Prevented . | . . . . Kills | -11 -10 -10 -10 ------- Run | Yrd Mat Min Sub Combat Hostiles Destroyed 21 | . 9 12 . Guns 20 | . 9 11 . AOE 1 | . . 1 . Classes Destroyed 6 | 1 4 1 . Tunneler 3 | 3 . . . Hauler 1 | . 1 . . Watcher 1 | . 1 . . Swarmer 3 | . 3 . . Grunt 10 | . 6 4 . Assembled 8 | . . 8 . Best Kill Streak 4 | 2 3 4 . Combat Bots Only 4 | . 3 4 . Max Kills in Single Turn 2 | 1 2 1 . Gunslinging 1 | . 1 . . Exploded 1 | . . 1 . Melee . | . . . . Uniques/NPCs Destroyed . | . . . . Combat | -11 -10 -10 -10 -------- Run | Yrd Mat Min Sub Hostile Shots Fired 111 | . 44 66 1 Missed 20 | . 10 10 . Hits 91 | . 34 56 1 Melee 4 | . . 4 . Projectile 87 | . 34 52 1 Damage Taken 1310 | . 394 775 141 Core 260 | . 37 172 51 Absorbed by Shields . | . . . . Core Remaining (%) 100 | 100 . . . Volleys Fired 105 | 6 43 49 7 Largest 2 | 2 2 2 2 Hottest 120 | 90 90 105 120 Shots Fired 195 | 12 84 90 9 Gun 194 | 12 84 90 8 Cannon . | . . . . Launcher . | . . . . Special 1 | . . . 1 Kinetic 28 | . . 20 8 Thermal 155 | 12 84 58 1 Explosive . | . . . . Electromagnetic 12 | . . 12 . Robot Hit Streak 9 | 8 9 7 8 Robot Miss Streak 4 | 1 4 4 . Penetration Max . | . . . . Secondary Targets 3 | . 2 1 . Max Gunslinging Chain 1 | . 1 1 . Shots Hit Robots 120 | 10 53 50 7 Core Hits 49 | 3 21 23 2 Critical Kills . | . . . . Critical Parts Destroyed . | . . . . Critical Strikes 1 | 1 . . . Burn 1 | 1 . . . Melee Attacks . | . . . . Impact . | . . . . Slashing . | . . . . Piercing . | . . . . Sneak Attacks . | . . . . Combat Hostiles . | . . . . Follow-up Attacks . | . . . . Damage Inflicted 1475 | 131 622 633 89 Guns 1417 | 131 622 587 77 Cannons . | . . . . Explosions 46 | . . 46 . Melee . | . . . . Ramming . | . . . . Kinetic 185 | . . 108 77 Thermal 1196 | 131 622 431 12 Explosive . | . . . . Electromagnetic 94 | . . 94 . Impact . | . . . . Slashing . | . . . . Piercing . | . . . . Highest Corruption 8 | . . 8 8 Average Corruption 7 | . . 7 8 Corruption Purged . | . . . . Corruption Blocked . | . . . . Effects 22 | . . 8 14 Message Errors 3 | . . 2 1 Matter Fused 4 | . . 2 2 Heat Flow Errors 5 | . . 1 4 Energy Discharges 4 | . . 1 3 Parts Fused 1 | . . . 1 Data Loss (minor) 3 | . . 2 1 Data Loss (major) 1 | . . . 1 Misfires 1 | . . . 1 Overload Shots . | . . . . Overflow Damage . | . . . . Projectiles . | . . . . Explosions . | . . . . Melee . | . . . . Knockbacks . | . . . . Impact . | . . . . Kinetic . | . . . . Secondary . | . . . . Self-Inflicted Damage 10 | . . 10 . Shots 1 | . . 1 . Rammed . | . . . . Targets Rammed . | . . . . Kicked . | . . . . Crushed . | . . . . Highest Temperature 351 | 120 351 301 214 Average Temperature 111 | 51 108 129 103 Received Heat Transfer 360 | . 186 174 . Siege Activations . | . . . . Martial Activations . | . . . . Shielding Activations . | . . . . Robots Disrupted . | . . . . Combat Hostiles . | . . . . Robots Corrupted . | . . . . Combat Hostiles . | . . . . Parts Fried . | . . . . Impact Corruptions . | . . . . Robots Melted . | . . . . Combat Hostiles . | . . . . Parts Melted 5 | 1 1 3 . Heat Transferred 3063 | 421 1589 973 80 Parts Sabotaged . | . . . . Parts Stolen . | . . . . Parts Stripped . | . . . . Power Chain Reactions 1 | . . 1 . Alert | -11 -10 -10 -10 ------- Run | Yrd Mat Min Sub Maximum Alert Level . | . . . . Low Security (%) 100 | 100 100 100 . Level 1 . | . . . . Level 2 . | . . . . Level 3 . | . . . . Level 4 . | . . . . Level 5 . | . . . . High Security . | . . . . Max Security . | . . . . Peak Influence 99 | 10 99 42 . Initial 20 | . 3 20 . Average 16 | 1 25 6 . Influence Increases 399 | 15 282 102 . Destroy 0b10 Robot/C 260 | . 180 80 . Destroy 0b10 Robot/NC 25 | 15 10 . . Destroy Leader 64 | . 44 20 . Successful Hack 17 | . 17 . . Destroy Structure 3 | . 1 2 . Lose Combat Pursuer 30 | . 30 . . Influence Decreases 399 | 10 234 155 . Entered New Map 35 | . 2 33 . Time Decay 344 | 10 222 112 . Lost Part 20 | . 10 10 . Squads Dispatched 3 | . 3 . . Investigation . | . . . . Extermination . | . . . . Reinforcement 3 | . 3 . . Assault . | . . . . Garrison . | . . . . Intercept . | . . . . Searches Triggered . | . . . . Construction Impeded . | . . . . Haulers Reinforced . | . . . . Active Scanning Responses . | . . . . Cargo Convoy Interrupts . | . . . . Stealth | -11 -10 -10 -10 --------- Run | Yrd Mat Min Sub Distress Signals 2 | . 2 . . Communications Jammed . | . . . . Distress Signals . | . . . . Times Spotted 33 | . 20 11 2 Peak Tracking Total 3 | . 3 2 2 Tactical Retreats 2 | . 2 . . Traps | -11 -10 -10 -10 ------- Run | Yrd Mat Min Sub Traps Triggered 2 | . . . 2 Indirectly . | . . . . Trap Hack Attempts . | . . . . Triggered . | . . . . Disarmed . | . . . . Reprogrammed . | . . . . Reused . | . . . . Traps Extracted . | . . . . Installed . | . . . . Triggered . | . . . . Machines | -11 -10 -10 -10 ---------- Run | Yrd Mat Min Sub Machines Disabled . | . . . . Max in Single Turn . | . . . . Machines Repaired . | . . . . Machines Dismantled . | . . . . Machines Sabotaged . | . . . . Overloaded Fab Kills . | . . . . Hacking | -11 -10 -10 -10 --------- Run | Yrd Mat Min Sub Machines Accessed 2 | . 2 . . Terminals 2 | . 2 . . Fabricators . | . . . . Repair Stations . | . . . . Recycling Units . | . . . . Scanalyzers . | . . . . Garrison Access . | . . . . Total Hacks 7 | . 7 . . Successful 4 | . 4 . . Failed 3 | . 3 . . Catastrophic . | . . . . Database Lockouts . | . . . . Manual 2 | . 2 . . Terminals 7 | . 7 . . Fabricators . | . . . . Repair Stations . | . . . . Recycling Units . | . . . . Scanalyzers . | . . . . Garrison Access . | . . . . Terminal Hacks 4 | . 4 . . Robot Analysis 1 | . 1 . . Terminal Index 1 | . 1 . . Recycling Unit Index 1 | . 1 . . Hauler Manifests 1 | . 1 . . Fabricator Hacks . | . . . . Repair Station Hacks . | . . . . Recycling Unit Hacks . | . . . . Scanalyzer . | . . . . Garrison Access Hacks . | . . . . Unauthorized Hacks . | . . . . Terminals . | . . . . Fabricators . | . . . . Repair Stations . | . . . . Recycling Units . | . . . . Scanalyzers . | . . . . Garrison Access . | . . . . Data Cores Recovered . | . . . . Used . | . . . . Hacking Detections 2 | . 2 . . Full Trace Events . | . . . . Feedback Events . | . . . . Feedback Blocked . | . . . . Robot Schematics Acquired . | . . . . Robots Built . | . . . . Authchips . | . . . . Time . | . . . . Total Robot Build Rating . | . . . . Part Schematics Acquired . | . . . . Parts Built . | . . . . Authchips . | . . . . Time . | . . . . Total Part Build Rating . | . . . . Parts Repaired . | . . . . Time . | . . . . Parts Recycled . | . . . . Recycled Matter . | . . . . Retrieved Matter . | . . . . Retrieved Components . | . . . . Parts Scanalyzed . | . . . . Part Schematics Acquired . | . . . . Parts Damaged . | . . . . Bothacking | -11 -10 -10 -10 ------------ Run | Yrd Mat Min Sub Used RIF Installer . | . . . . Robots Hacked . | . . . . Non-combat . | . . . . Combat . | . . . . Robot Hacks Applied . | . . . . Relay Couplers Released . | . . . . Fabnet Peak Effective % . | . . . . Robots Rewired . | . . . . Allies Hacked . | . . . . Hacks Repelled . | . . . . Allies | -11 -10 -10 -10 -------- Run | Yrd Mat Min Sub Total Allies 3 | . . 3 . Largest Group 3 | . . 3 3 Highest-Rated Group 40 | . . 40 40 Highest-Rated Ally 16 | . . 16 16 Total Orders . | . . . . Ally Attacks 20 | . . . 20 Total Damage 95 | . . . 95 Kills 2 | . . . 2 Allies Corrupted . | . . . . Allies Melted . | . . . . Intel | -11 -10 -10 -10 ------- Run | Yrd Mat Min Sub Active Infowar (turns) 1664 | 10 818 334 502 Seismic 1664 | 10 818 334 502 Robot Analysis Total 1 | . 1 . . Derelict Logs Recovered 1 | . . 1 . Drone Launches . | . . . . Drone Recoveries . | . . . . Exploration | -11 -10 -10 -10 ------------- Run | Yrd Mat Min Sub Turns Passed 1949 | 119 818 505 507 Spaces Moved 962 | 59 387 216 300 Core 5 | 5 . . . Treads 951 | 48 387 216 300 Legs 6 | 6 . . . Wheels . | . . . . Hover . | . . . . Flight . | . . . . Fastest Speed 50 | 50 160 160 160 Average Speed 159 | 146 160 161 160 Slowest Speed 240 | 160 160 240 160 Overloaded Moves . | . . . . Propulsion Burnouts . | . . . . Robots Hopped . | . . . . Potential Cave-ins . | . . . . Cave-ins Triggered . | . . . . Exploration Rate (%) 33 | 5 60 49 21 Regions Visited 3 Branch Regions 2 Pre-discovered Areas 1 | . . 1 . Known Exits Taken . | . . . . Unknown Exits Taken 3 | 1 1 1 . Scrap Searched 1 | . . . 1 Spaces Dug . | . . . . Terrain Destroyed 2 | . . 2 . Melee . | . . . . Projectile . | . . . . AOE 2 | . . 2 . Terrain Rammed . | . . . . Walls Destroyed . | . . . . Machines Disabled . | . . . . Actions | -11 -10 -10 -10 --------- Run | Yrd Mat Min Sub Total 1178 | 75 502 282 319 Wait 78 | . 60 9 9 Move 959 | 58 386 215 300 Hop . | . . . . Pick Up 13 | 2 10 . 1 Fast Attach 10 | 7 . 2 1 Attach 7 | . 1 6 . Detach . | . . . . Swap 5 | 2 1 1 1 Drop 1 | . 1 . . Fire 105 | 6 43 49 7 Melee . | . . . . Ram . | . . . . Kick . | . . . . Crush . | . . . . Escape Stasis . | . . . . Rewire . | . . . . Trap . | . . . . Miscellaneous . | . . . . Route ------- -11/Scrapyard -10/Materials (discovered 4 exits: [*Mat x2] / [*Min x2]) -10/Mines -10/Subcaves History --------- Turn | Location | Event 12 | -11/Scrapyard | Discovered new exit (range 14) 120 | -11/Scrapyard | Entered Materials 219 | -10/Materials | Discovered new exit (range 16) 302 | -10/Materials | Build established: Mutant 397 | -10/Materials | Discovered new exit (range 3) 585 | -10/Materials | Discovered new exit (range 15) 782 | -10/Materials | Discovered new exit (range 9) 938 | -10/Materials | Entered Mines 939 | -10/Mines | Learned location of Storage (-8) 999 | -10/Mines | Assembled infested the area 1079 | -10/Mines | Core integrity fell below 50% 1236 | -10/Mines | Lost 6 parts (1p1n1u3w) 1244 | -10/Mines | Core integrity fell below 20% 1407 | -10/Mines | Assisted by bots powering up and referring to "LRC-V3" 1431 | -10/Mines | Discovered new exit (range 8) 1443 | -10/Mines | Entered Subcaves 1443 | -10/Subcaves | Accompanied by 3 allies 1812 | -10/Subcaves | Curiously followed by a Cobbler waking with a query about "LVR3C" 1901 | -10/Subcaves | Ambushed by Subdwellers from Twisted Machinery 1950 | -10/Subcaves | Destroyed by ZX-SKI(R) with Subdweller Machine Gun Last Messages --------------- 01810_ System corrupted: Heat flow error (+244). 01812_ L2-SR6(O) wakes at your presence. 01812_ L2-SR6(O): "LVR3C?" 01841_ Acquired 11 matter. 01877_ Acquired 12 matter. 01880_ L2-SR6(O) collects matter. 01901_ ZX-SKI(R) emerges from the Twisted Machinery. 01902_ L2-SR6(O) collects matter. 01908_ Mercenary 1a destroyed. 01917_ System corrupted: Energy discharge (-30). 01937_ Searching scrap... 01937_ Found Mak. Light Armor Plating. 01937_ Found Unknown Special Weapon. 01937_ Found 64 Matter. 01942_ Acquired Unknown Special Weapon. 01942_ Identified Flamer. 01945_ |&LPH0ZRRBBSU/9L6G MQKO1M 80